fUST/lending_fUST_20250701
["ID","MTS","AMOUNT","RATE_DAILY","PERIOD"]
[368694527,1751302242749,-500.0,0.00023473,2]
[368694528,1751302242760,-500.0,0.00023473,2]
[368694529,1751302242770,-500.0,0.00023473,2]
[368694530,1751302242780,-500.0,0.00023473,2]
[368694531,1751302242789,-500.0,0.00023473,2]
[368694532,1751302242799,-500.0,0.00023473,2]
[368694533,1751302242809,-500.0,0.00023473,2]
[368694534,1751302242818,-151.0,0.00023475,7]
[368694535,1751302242827,-151.0,0.00023475,7]
[368694536,1751302242837,-720.799827,0.00023475,7]
[368694537,1751302242847,-720.799827,0.00023475,7]
[368694538,1751302242857,-535.312697,0.00023475,7]
[368694539,1751302242867,-535.312697,0.00023475,7]
[368694542,1751302242878,-535.312697,0.00023475,7]
[368694544,1751302242891,-535.312697,0.00023475,7]
[368694547,1751302242901,-151.0,0.00023475,7]
[368694549,1751302242912,-181603.83880992,0.00023475,2]
[368694570,1751302243422,-837.16779106,0.00020713,2]
[368694573,1751302243432,-24900.0,0.00021893,2]
[368694576,1751302243442,-2324.31,0.000219,2]
[368694579,1751302243451,-387.56777772,0.000219,6]
[368694582,1751302243460,-387.56777767,0.00022003,6]
[368694585,1751302243470,-387.56777767,0.00022107,6]
[368694586,1751302243479,-387.56777767,0.0002221,6]
[368694590,1751302243489,-387.56777767,0.00022314,7]
[368694592,1751302243498,-387.56777767,0.00022417,7]
[368694594,1751302243507,-387.56777767,0.00022521,7]
[368694596,1751302243517,-387.56777767,0.00022624,7]
[368694598,1751302243527,-387.56777767,0.00022728,7]
[368694600,1751302243537,-2395.69,0.0002289,10]
[368694602,1751302243547,-2200.0,0.000229,2]
[368694604,1751302243557,-2324.31,0.000231,7]
[368694606,1751302243566,-79065.64724667,0.00023475,2]
[368694608,1751302243576,-3862.21695751,0.00023476,2]
[368694611,1751302243585,-261.0,0.00023498,2]
[368694614,1751302243595,-500.0,0.000235,30]
[368694617,1751302243605,-1000.0,0.000235,2]
[368694619,1751302243614,-3183.30402959,0.000235,2]
[368695127,1751302524587,170.393443,0.00013699,2]
[368695155,1751302781604,599.2,0.00021918,60]
[368695180,1751303144149,-165.87463612,0.00018657,2]
[368695181,1751303144170,-1043.50272284,0.00018925,2]
[368695182,1751303231167,-1463.93786339,0.00018925,2]
[368695183,1751303233087,-354.86852307,0.00018925,2]
[368695184,1751303233109,-58.96835569,0.00018942,2]
[368695185,1751303238087,-308.53032111,0.00018942,2]
[368695191,1751303349150,-1437.4943603,0.00018743,2]
[368695192,1751303349172,-1792.5726608,0.00018799,2]
[368695193,1751303349195,-300.0,0.00018827,2]
[368695194,1751303349217,-24900.0,0.00018828,2]
[368695195,1751303349238,-693.9122742,0.00018942,2]
[368695196,1751303349261,-164.967433,0.00019203,2]
[368695197,1751303349282,-180.94004,0.00019219,2]
[368695198,1751303349302,-164.967433,0.00019223,2]
[368695199,1751303349324,-460.0,0.00019234,2]
[368695200,1751303349347,-164.967433,0.00019242,2]
[368695201,1751303349369,-164.967433,0.00019261,2]
[368695202,1751303349391,-164.967433,0.0001928,2]
[368695203,1751303349411,-164.967433,0.00019299,2]
[368695204,1751303349431,-1624.70309541,0.00019299,2]
[368695205,1751303349452,-276.45772686,0.00019417,2]
[368695206,1751303349473,-452.0,0.00019505,2]
[368695207,1751303349494,-1200.0,0.00019506,2]
[368695208,1751303349515,-300.0,0.00019507,2]
[368695209,1751303349536,-300.0,0.00019507,2]
[368695210,1751303349558,-300.0,0.00019507,2]
[368695211,1751303349580,-289.51619897,0.00019818,2]
[368695212,1751303349602,-672.32959207,0.00020007,2]
[368695213,1751303349627,-847.41730813,0.00020016,2]
[368695214,1751303349649,-160.0,0.00020016,2]
[368695215,1751303349672,-160.0,0.00020016,2]
[368695216,1751303349694,-213.84631524,0.00020016,2]
[368695217,1751303349715,-160.0,0.00020016,2]
[368695218,1751303349737,-214.99848635,0.00020016,2]
[368695219,1751303349760,-837.16779106,0.00020016,2]
[368695220,1751303349781,-230.31346914,0.00020016,2]
[368695221,1751303349803,-460.0,0.00020017,2]
[368695222,1751303349826,-359.4703468,0.00020018,2]
[368695223,1751303349847,-170.393443,0.00020187,2]
[368695224,1751303349871,-160.0,0.00020401,2]
[368695225,1751303349893,-1205.86013611,0.00020465,2]
[368695226,1751303349914,-198.093,0.00020479,2]
[368695227,1751303349936,-195.33,0.000205,3]
[368695228,1751303349959,-586.0,0.000205,3]
[368695229,1751303349981,-1001.24498345,0.00020501,2]
[368695230,1751303350003,-500.0,0.00020501,2]
[368695231,1751303350024,-500.0,0.00020501,2]
[368695232,1751303350049,-500.0,0.00020501,2]
[368695233,1751303350071,-474.16061118,0.00020501,2]
[368695234,1751303350093,-534.16434363,0.00020501,2]
[368695235,1751303350114,-246.73070236,0.00020501,2]
[368695236,1751303350136,-346.42764463,0.00020501,2]
[368695237,1751303350157,-500.0,0.00020501,2]
[368695238,1751303350178,-500.0,0.00020501,2]
[368695239,1751303350199,-500.0,0.00020501,2]
[368695240,1751303350220,-500.0,0.00020501,2]
[368695241,1751303350240,-500.0,0.00020501,2]
[368695242,1751303350265,-500.0,0.00020501,2]
[368695243,1751303350286,-500.0,0.00020501,2]
[368695244,1751303350307,-500.0,0.00020501,2]
[368695245,1751303350327,-500.0,0.00020501,2]
[368695246,1751303350348,-500.0,0.00020501,2]
[368695247,1751303350370,-500.0,0.00020501,2]
[368695248,1751303350392,-500.0,0.00020501,2]
[368695249,1751303350414,-500.0,0.00020501,2]
[368695250,1751303350436,-500.0,0.00020501,2]
[368695251,1751303350458,-500.0,0.00020501,2]
[368695252,1751303350480,-500.0,0.00020501,2]
[368695253,1751303350502,-500.0,0.00020501,2]
[368695254,1751303350526,-500.0,0.00020501,2]
[368695255,1751303350550,-500.0,0.00020501,2]
[368695256,1751303350578,-500.0,0.00020501,2]
[368695257,1751303350603,-500.0,0.00020501,2]
[368695258,1751303350629,-500.0,0.00020501,2]
[368695259,1751303350654,-500.0,0.00020501,2]
[368695260,1751303350680,-500.0,0.00020501,2]
[368695261,1751303350705,-217.51182155,0.00020501,2]
[368695262,1751303350730,-500.0,0.00020501,2]
[368695263,1751303350759,-203.15504528,0.00020501,2]
[368695264,1751303350783,-500.0,0.00020501,2]
[368695265,1751303350809,-500.0,0.00020501,2]
[368695266,1751303350837,-500.0,0.00020501,2]
[368695267,1751303350864,-500.0,0.00020501,2]
[368695268,1751303350889,-500.0,0.00020501,2]
[368695269,1751303350918,-500.0,0.00020501,2]
[368695270,1751303350940,-500.0,0.00020501,2]
[368695271,1751303350961,-500.0,0.00020501,2]
[368695272,1751303350984,-500.0,0.00020501,2]
[368695273,1751303351006,-500.0,0.00020501,2]
[368695274,1751303351030,-421.55185658,0.00020501,2]
[368695275,1751303351051,-500.0,0.00020501,2]
[368695276,1751303351073,-500.0,0.00020501,2]
[368695277,1751303351096,-500.0,0.00020501,2]
[368695278,1751303351129,-500.0,0.00020501,2]
[368695279,1751303351160,-500.0,0.00020501,2]
[368695280,1751303351183,-500.0,0.00020501,2]
[368695281,1751303351206,-500.0,0.00020501,2]
[368695282,1751303351228,-500.0,0.00020501,2]
[368695283,1751303351250,-500.0,0.00020501,2]
[368695284,1751303351272,-500.0,0.00020501,2]
[368695285,1751303351294,-500.0,0.00020501,2]
[368695286,1751303351316,-500.0,0.00020501,2]
[368695287,1751303351338,-500.0,0.00020501,2]
[368695288,1751303351361,-500.0,0.00020501,2]
[368695289,1751303351383,-500.0,0.00020501,2]
[368695290,1751303351407,-500.0,0.00020501,2]
[368695291,1751303351431,-500.0,0.00020501,2]
[368695292,1751303351454,-500.0,0.00020501,2]
[368695293,1751303351475,-500.0,0.00020501,2]
[368695294,1751303351496,-500.0,0.00020501,2]
[368695295,1751303351518,-500.0,0.00020501,2]
[368695296,1751303351540,-431.73573485,0.00020501,2]
[368695297,1751303351561,-500.0,0.00020501,2]
[368695298,1751303351583,-500.0,0.00020501,2]
[368695299,1751303351604,-500.0,0.00020501,2]
[368695300,1751303351626,-500.0,0.00020501,2]
[368695301,1751303351648,-500.0,0.00020501,2]
[368695302,1751303351671,-500.0,0.00020501,2]
[368695303,1751303351693,-516.71178669,0.00020501,2]
[368695304,1751303351717,-500.0,0.00020501,2]
[368695305,1751303351739,-500.0,0.00020501,2]
[368695306,1751303351761,-500.0,0.00020501,2]
[368695307,1751303351782,-500.0,0.00020501,2]
[368695308,1751303351803,-500.0,0.00020501,2]
[368695309,1751303351825,-500.0,0.00020501,2]
[368695310,1751303351847,-500.0,0.00020501,2]
[368695311,1751303351868,-500.0,0.00020501,2]
[368695312,1751303351890,-500.0,0.00020501,2]
[368695313,1751303351910,-500.0,0.00020501,2]
[368695314,1751303352055,-500.0,0.00020501,2]
[368695315,1751303352079,-500.0,0.00020501,2]
[368695316,1751303352101,-500.0,0.00020501,2]
[368695317,1751303352124,-500.0,0.00020501,2]
[368695318,1751303352147,-500.0,0.00020501,2]
[368695319,1751303352169,-500.0,0.00020501,2]
[368695320,1751303352190,-500.0,0.00020501,2]
[368695321,1751303352210,-500.0,0.00020501,2]
[368695322,1751303352233,-500.0,0.00020501,2]
[368695323,1751303352253,-500.0,0.00020501,2]
[368695324,1751303352275,-199.38963352,0.00020501,2]
[368695325,1751303352297,-499.99999999,0.00020501,2]
[368695326,1751303352318,-500.0,0.00020501,2]
[368695327,1751303352340,-556.00702657,0.00020501,2]
[368695328,1751303352360,-500.0,0.00020501,2]
[368695329,1751303352382,-556.00702657,0.00020501,2]
[368695330,1751303352402,-556.00702657,0.00020501,2]
[368695331,1751303352422,-499.99999999,0.00020501,2]
[368695332,1751303352443,-556.00702657,0.00020501,2]
[368695333,1751303352463,-556.00702657,0.00020501,2]
[368695334,1751303352484,-556.00702657,0.00020501,2]
[368695335,1751303352507,-556.00702657,0.00020501,2]
[368695336,1751303352528,-556.00702657,0.00020501,2]
[368695337,1751303352551,-500.0,0.00020501,2]
[368695338,1751303352572,-556.00702657,0.00020501,2]
[368695339,1751303352592,-500.0,0.00020501,2]
[368695340,1751303352613,-500.0,0.00020501,2]
[368695341,1751303352634,-500.0,0.00020501,2]
[368695342,1751303352656,-556.00702657,0.00020501,2]
[368695343,1751303352676,-453.84490926,0.00020501,2]
[368695344,1751303352697,-500.0,0.00020501,2]
[368695345,1751303352718,-556.00702657,0.00020501,2]
[368695346,1751303352739,-500.0,0.00020501,2]
[368695347,1751303352759,-500.0,0.00020501,2]
[368695348,1751303352782,-556.00702657,0.00020501,2]
[368695349,1751303352804,-500.0,0.00020501,2]
[368695350,1751303352826,-556.00702657,0.00020501,2]
[368695351,1751303352848,-500.0,0.00020501,2]
[368695352,1751303352870,-500.0,0.00020501,2]
[368695353,1751303352891,-500.0,0.00020501,2]
[368695354,1751303352913,-556.00702657,0.00020501,2]
[368695355,1751303352934,-500.0,0.00020501,2]
[368695356,1751303352955,-500.0,0.00020501,2]
[368695357,1751303352976,-500.0,0.00020501,2]
[368695358,1751303352998,-556.00702657,0.00020501,2]
[368695359,1751303353019,-500.0,0.00020501,2]
[368695360,1751303353044,-500.0,0.00020501,2]
[368695361,1751303353066,-556.00702657,0.00020501,2]
[368695362,1751303353088,-257.50131351,0.00020501,2]
[368695363,1751303353110,-500.0,0.00020501,2]
[368695364,1751303353134,-556.00702657,0.00020501,2]
[368695365,1751303353156,-500.0,0.00020501,2]
[368695366,1751303353177,-556.00702657,0.00020501,2]
[368695367,1751303353199,-500.0,0.00020501,2]
[368695368,1751303353220,-556.00702657,0.00020501,2]
[368695369,1751303353241,-500.0,0.00020501,2]
[368695370,1751303353262,-500.0,0.00020501,2]
[368695371,1751303353282,-556.00702657,0.00020501,2]
[368695372,1751303353302,-500.0,0.00020501,2]
[368695373,1751303353322,-500.0,0.00020501,2]
[368695374,1751303353343,-556.00702657,0.00020501,2]
[368695375,1751303353363,-500.0,0.00020501,2]
[368695376,1751303353384,-556.00702657,0.00020501,2]
[368695377,1751303353404,-556.00702657,0.00020501,2]
[368695378,1751303353427,-556.00702657,0.00020501,2]
[368695379,1751303353457,-500.0,0.00020501,2]
[368695380,1751303353485,-556.00702657,0.00020501,2]
[368695381,1751303353512,-500.0,0.00020501,2]
[368695382,1751303353537,-556.00702657,0.00020501,2]
[368695383,1751303353565,-500.0,0.00020501,2]
[368695384,1751303353591,-500.0,0.00020501,2]
[368695385,1751303353620,-556.00702657,0.00020501,2]
[368695386,1751303353648,-500.0,0.00020501,2]
[368695387,1751303353676,-556.00702657,0.00020501,2]
[368695388,1751303353704,-500.0,0.00020501,2]
[368695389,1751303353732,-556.00702657,0.00020501,2]
[368695390,1751303353759,-500.0,0.00020501,2]
[368695391,1751303353787,-556.00702657,0.00020501,2]
[368695392,1751303353814,-500.0,0.00020501,2]
[368695393,1751303353843,-556.00702657,0.00020501,2]
[368695394,1751303353869,-556.00702657,0.00020501,2]
[368695395,1751303353894,-500.0,0.00020501,2]
[368695396,1751303353919,-556.00702657,0.00020501,2]
[368695397,1751303353946,-500.0,0.00020501,2]
[368695398,1751303353972,-556.00702657,0.00020501,2]
[368695399,1751303353999,-500.0,0.00020501,2]
[368695400,1751303354025,-556.00702657,0.00020501,2]
[368695401,1751303354054,-500.0,0.00020501,2]
[368695402,1751303354082,-500.0,0.00020501,2]
[368695403,1751303354111,-556.00702657,0.00020501,2]
[368695404,1751303354140,-500.0,0.00020501,2]
[368695405,1751303354165,-556.00702657,0.00020501,2]
[368695406,1751303354188,-500.0,0.00020501,2]
[368695407,1751303354213,-556.00702657,0.00020501,2]
[368695408,1751303354241,-500.0,0.00020501,2]
[368695409,1751303354269,-556.00702657,0.00020501,2]
[368695410,1751303354294,-500.0,0.00020501,2]
[368695411,1751303354319,-556.00702657,0.00020501,2]
[368695412,1751303354346,-556.00702657,0.00020501,2]
[368695413,1751303354373,-556.00702657,0.00020501,2]
[368695414,1751303354398,-500.0,0.00020501,2]
[368695415,1751303354424,-556.00702657,0.00020501,2]
[368695416,1751303354449,-325.70645179,0.00020501,2]
[368695417,1751303354643,-174.29354821,0.00020501,2]
[368695418,1751303354670,-556.00702657,0.00020501,2]
[368695419,1751303354694,-500.0,0.00020501,2]
[368695420,1751303354719,-556.00702657,0.00020501,2]
[368695421,1751303354744,-556.00702657,0.00020501,2]
[368695422,1751303354770,-500.0,0.00020501,2]
[368695423,1751303354796,-549.44545297,0.00020501,2]
[368695424,1751303354822,-549.44545297,0.00020501,2]
[368695425,1751303354846,-500.0,0.00020501,2]
[368695426,1751303354872,-200.0,0.00020501,2]
[368695427,1751303354897,-549.44545297,0.00020501,2]
[368695428,1751303354924,-500.0,0.00020501,2]
[368695429,1751303355112,-549.44545297,0.00020501,2]
[368695430,1751303355150,-549.44545297,0.00020501,2]
[368695431,1751303355172,-500.0,0.00020501,2]
[368695432,1751303355194,-549.44545297,0.00020501,2]
[368695433,1751303355215,-549.44545297,0.00020501,2]
[368695434,1751303355237,-319.26995385,0.00020501,2]
[368695436,1751303371147,-180.73004615,0.00020501,2]
[368695437,1751303371168,-549.44545297,0.00020501,2]
[368695438,1751303371189,-549.44545297,0.00020501,2]
[368695439,1751303371211,-500.0,0.00020501,2]
[368695440,1751303371231,-549.44545297,0.00020501,2]
[368695441,1751303371251,-549.44545297,0.00020501,2]
[368695442,1751303371271,-549.44545297,0.00020501,2]
[368695443,1751303371291,-549.44545297,0.00020501,2]
[368695444,1751303371312,-549.44545297,0.00020501,2]
[368695445,1751303371332,-549.44545297,0.00020501,2]
[368695446,1751303371353,-549.44545297,0.00020501,2]
[368695447,1751303371373,-549.44545297,0.00020501,2]
[368695448,1751303371393,-549.44545297,0.00020501,2]
[368695449,1751303371413,-549.44545297,0.00020501,2]
[368695450,1751303371434,-549.44545297,0.00020501,2]
[368695451,1751303371453,-549.44545297,0.00020501,2]
[368695452,1751303371473,-549.44545297,0.00020501,2]
[368695453,1751303371493,-549.44545297,0.00020501,2]
[368695454,1751303371513,-500.0,0.00020503,2]
[368695455,1751303371533,-460.0,0.00020504,2]
[368695456,1751303371553,-460.0,0.00020504,2]
[368695457,1751303371574,-476.35,0.00020508,2]
[368695458,1751303371593,-118318.01997791,0.0002051,2]
[368695459,1751303372271,-86593.95139514,0.0002051,2]
[368695467,1751303432480,-460.0,0.00020017,2]
[368695468,1751303432490,-349.33567633,0.00020017,2]
[368695469,1751303432501,-171.151,0.00020291,2]
[368695470,1751303432511,-2.49656763,0.00020329,2]
[368695473,1751303432532,-902.04886017,0.00020329,2]
[368695474,1751303432542,-300.0,0.00020509,2]
[368695476,1751303432553,-586.12581669,0.0002051,2]
[368695479,1751303432565,-488.1269753,0.0002051,2]
[368695481,1751303432577,-12754.61748413,0.0002051,2]
[368695483,1751303432588,-58788.91757916,0.0002051,2]
[368695487,1751303432622,-748.90098262,0.0002051,2]
[368695528,1751303432873,-42010.58625818,0.0002051,2]
[368695532,1751303432886,-314.54692683,0.0002051,2]
[368695599,1751303438490,-495.7399992,0.00020509,2]
[368695600,1751303438507,-4.2600008,0.00020509,2]
[368695601,1751303438517,-500.0,0.00020509,2]
[368695602,1751303438526,-500.0,0.00020509,2]
[368695603,1751303438536,-293.62913295,0.00020509,2]
[368695604,1751303438548,-206.37086705,0.00020509,2]
[368695605,1751303438559,-500.0,0.00020509,2]
[368695606,1751303438568,-244.37662595,0.00020509,2]
[368695607,1751303438578,-605.9827677,0.00020509,2]
[368695608,1751303438587,-561.93018258,0.00020509,2]
[368695609,1751303438597,-325.74841498,0.00020509,2]
[368695610,1751303438606,-189.23944948,0.00020509,2]
[368695611,1751303438616,-546.83909518,0.00020509,2]
[368695612,1751303438625,-617.50131351,0.00020509,2]
[368695613,1751303438635,-500.0,0.00020509,2]
[368695614,1751303438644,-500.0,0.00020509,2]
[368695615,1751303438654,-500.0,0.00020509,2]
[368695616,1751303438663,-500.0,0.00020509,2]
[368695617,1751303438677,-500.0,0.00020509,2]
[368695618,1751303438687,-500.0,0.00020509,2]
[368695619,1751303438697,-500.0,0.00020509,2]
[368695620,1751303438707,-500.0,0.00020509,2]
[368695621,1751303438716,-500.0,0.00020509,2]
[368695622,1751303438727,-500.0,0.00020509,2]
[368695623,1751303438736,-36722.03640626,0.0002051,2]
[368695624,1751303438749,-275.32868555,0.0002051,2]
[368695625,1751303438760,-3184.2600008,0.0002051,2]
[368695626,1751303438772,-534.94906441,0.0002051,2]
[368695627,1751303438784,-708.43795877,0.0002051,2]
[368695628,1751303438797,-1019.54698985,0.0002051,2]
[368695629,1751303438808,-1249.0500665,0.0002051,2]
[368695630,1751303438819,-813.62704925,0.0002051,2]
[368695631,1751303439173,-134.37526211,0.0002051,2]
[368695632,1751303439185,-1005.50295601,0.0002051,2]
[368695633,1751303439197,-1806.41131233,0.0002051,2]
[368695634,1751303439209,-1942.6808522,0.0002051,2]
[368695635,1751303439220,-500.0,0.00020573,2]
[368695636,1751303439230,-1996.88,0.000206,2]
[368695637,1751303439240,-160.0,0.00020617,3]
[368695638,1751303439249,-460.0,0.0002062,2]
[368695639,1751303439259,-460.0,0.0002062,2]
[368695640,1751303439269,-460.0,0.0002062,2]
[368695641,1751303439278,-1452.5,0.000207,2]
[368695642,1751303439288,-460.0,0.0002071,2]
[368695643,1751303439298,-460.0,0.00020778,2]
[368695644,1751303439308,-460.0,0.00020778,2]
[368695645,1751303439317,-460.0,0.00020894,2]
[368695646,1751303439326,-460.0,0.00020894,2]
[368695647,1751303439336,-430.01242031,0.000209,4]
[368695648,1751303439346,-1069.41134825,0.00020938,2]
[368695649,1751303439358,-460.0,0.00020984,2]
[368695650,1751303439368,-430.0124201,0.00021038,4]
[368695651,1751303439378,-460.0,0.00021052,2]
[368695652,1751303439388,-460.0,0.00021052,2]
[368695653,1751303439399,-1000.0,0.00021121,2]
[368695654,1751303439409,-460.0,0.00021168,2]
[368695655,1751303439418,-460.0,0.00021168,2]
[368695656,1751303439428,-430.0124201,0.00021176,4]
[368695657,1751303439437,-460.0,0.00021258,2]
[368695658,1751303439450,-183.0,0.00021276,2]
[368695659,1751303439459,-430.0124201,0.00021314,5]
[368695660,1751303439468,-460.0,0.00021326,2]
[368695661,1751303439477,-336.04,0.00021326,2]
[368695662,1751303439487,-183.0,0.00021383,2]
[368695663,1751303439497,-183.0,0.00021393,2]
[368695664,1751303439507,-460.0,0.00021442,2]
[368695665,1751303439518,-460.0,0.00021442,2]
[368695666,1751303439528,-430.0124201,0.00021452,5]
[368695667,1751303439537,-183.0,0.00021479,2]
[368695668,1751303439548,-460.0,0.00021532,2]
[368695669,1751303439557,-430.0124201,0.0002159,5]
[368695670,1751303439567,-460.0,0.000216,2]
[368695671,1751303439577,-1069.41134823,0.00021605,2]
[368695672,1751303439586,-1500.0,0.00021668,2]
[368695673,1751303439596,-375.32,0.00021716,2]
[368695674,1751303439607,-460.0,0.00021716,2]
[368695675,1751303439616,-430.0124201,0.00021728,5]
[368695676,1751303439626,-1996.88,0.000218,2]
[368695677,1751303439636,-646.0,0.00021803,2]
[368695678,1751303439646,-2151.0,0.00021803,2]
[368695679,1751303439656,-406.0,0.00021803,2]
[368695680,1751303439665,-460.0,0.00021806,2]
[368695681,1751303439675,-207.4,0.00021852,2]
[368695682,1751303439685,-430.0124201,0.00021866,6]
[368695683,1751303439694,-390.66,0.0002187,3]
[368695684,1751303439711,-460.0,0.00021874,2]
[368695685,1751303439721,-500.0,0.00021917,2]
[368695686,1751303439731,-501.80980753,0.00021917,2]
[368695687,1751303439741,-1317.7223025,0.00021918,7]
[368695688,1751303439752,-403.18378185,0.00021918,7]
[368695689,1751303439762,-2200.0,0.00021943,2]
[368695690,1751303439772,-183.0,0.00021944,2]
[368695691,1751303439782,-500.0,0.00021973,2]
[368695692,1751303439792,-500.0,0.00021973,2]
[368695693,1751303439802,-500.0,0.00021973,2]
[368695694,1751303439812,-500.0,0.00021973,2]
[368695695,1751303439823,-500.0,0.00021973,2]
[368695696,1751303439833,-500.0,0.00021973,2]
[368695697,1751303439843,-460.0,0.0002199,2]
[368695698,1751303439852,-151.0,0.00021998,7]
[368695699,1751303439862,-2000.0,0.00022,2]
[368695700,1751303439871,-13889.88,0.00022,7]
[368695701,1751303439882,-120757.31,0.00022,7]
[368695702,1751303439891,-2000.0,0.00022,2]
[368695703,1751303439902,-213.84631524,0.00022,7]
[368695704,1751303439912,-847.41730813,0.00022,7]
[368695705,1751303439923,-160.0,0.00022058,4]
[368695706,1751303439933,-460.0,0.0002208,2]
[368695707,1751303439942,-183.0,0.00022194,2]
[368695708,1751303439956,-394.47562695,0.00022216,2]
[368695709,1751303439965,-1618.89,0.00022235,5]
[368695710,1751303439976,-460.0,0.00022264,2]
[368695712,1751303439985,-1069.41134823,0.00022273,2]
[368695714,1751303439994,-420.0,0.00022321,2]
[368695716,1751303440004,-1618.89,0.00022335,5]
[368695718,1751303440014,-460.0,0.00022354,2]
[368695720,1751303440024,-1618.89,0.00022435,3]
[368695721,1751303440033,-183.0,0.00022442,2]
[368695722,1751303440043,-1000.0,0.00022521,2]
[368695723,1751303440054,-500.74369251,0.00022521,2]
[368695724,1751303440065,-496.51947691,0.00022521,2]
[368695726,1751303440075,-1000.0,0.00022521,2]
[368695728,1751303440084,-1000.0,0.00022521,2]
[368695730,1751303440095,-1000.0,0.00022521,2]
[368695732,1751303440105,-1618.89,0.00022535,2]
[368695734,1751303440114,-460.0,0.00022538,2]
[368695736,1751303440124,-183.0,0.00022619,2]
[368695738,1751303440135,-460.0,0.00022628,2]
[368695740,1751303440145,-1618.89,0.00022635,7]
[368695742,1751303440155,-183.0,0.00022638,2]
[368695744,1751303440165,-1618.89,0.00022735,6]
[368695746,1751303440174,-219.72,0.00022812,2]
[368695748,1751303440183,-1618.89,0.00022835,4]
[368695750,1751303440192,-460.0,0.00022902,2]
[368695752,1751303440202,-1618.89,0.00022935,2]
[368695754,1751303440212,-1069.41134823,0.0002294,2]
[368695756,1751303440222,-2000.0,0.00023,2]
[368695758,1751303440231,-206.0,0.00023,2]
[368695760,1751303440241,-206.0,0.00023,2]
[368695762,1751303440250,-206.0,0.00023,2]
[368695764,1751303440260,-215.98119737,0.00023,8]
[368695766,1751303440270,-120757.31,0.00023,7]
[368695768,1751303440279,-1058.4,0.00023,2]
[368695770,1751303440288,-151.0,0.00023,7]
[368695772,1751303440298,-151.0,0.00023,7]
[368695774,1751303440308,-151.0,0.00023,7]
[368695776,1751303440317,-151.0,0.00023,2]
[368695778,1751303440326,-151.0,0.00023,7]
[368695780,1751303440335,-151.0,0.00023,7]
[368695782,1751303440345,-153.76584,0.00023,7]
[368695784,1751303440355,-151.0,0.00023,7]
[368695786,1751303440364,-151.0,0.00023,7]
[368695788,1751303440374,-151.0,0.00023,7]
[368695790,1751303440384,-225.494757,0.00023,7]
[368695792,1751303440393,-151.0,0.00023,7]
[368695794,1751303440403,-151.0,0.00023,7]
[368695796,1751303440413,-1996.88,0.00023,7]
[368695798,1751303440422,-364.897898,0.00023029,4]
[368695800,1751303440432,-1618.89,0.00023035,6]
[368695802,1751303440442,-588.19225502,0.00023068,2]
[368695804,1751303440454,-1182.90443048,0.00023068,2]
[368695807,1751303440464,-1500.0,0.00023068,2]
[368695810,1751303440473,-1501.05506526,0.00023068,2]
[368695812,1751303440483,-151.0,0.000231,6]
[368695814,1751303440492,-13889.88,0.000231,7]
[368695816,1751303440502,-1618.89,0.00023135,7]
[368695818,1751303440511,-401.0,0.0002316,7]
[368695820,1751303440520,-460.0,0.00023176,2]
[368695822,1751303440529,-480.0,0.000232,2]
[368695824,1751303440539,-215.0738,0.00023221,2]
[368695826,1751303440550,-1618.89,0.00023235,6]
[368695828,1751303440559,-151.0,0.00023288,2]
[368695830,1751303440568,-151.0,0.00023315,2]